fUSD/lending_fUSD_20251024
["ID","MTS","AMOUNT","RATE_DAILY","PERIOD"]
[392276771,1761300631944,-251.89,0.00026968,2]
[392276772,1761300631954,-1937.0,0.00026997,2]
[392276773,1761300631964,-1975.0,0.0002705,2]
[392276774,1761300631974,-1557.0,0.00027103,2]
[392276775,1761300631984,-269.0,0.00027156,2]
[392276776,1761300631995,-271.0,0.00027209,2]
[392276777,1761300632006,-1706.0,0.00027262,2]
[392276778,1761300632016,-237.0,0.00027315,2]
[392276779,1761300632027,-1390.0,0.00027368,2]
[392276780,1761300632038,-431.0,0.00027421,2]
[392276781,1761300632049,-195.0,0.00027425,120]
[392276782,1761300632061,-300.0,0.00027425,120]
[392276783,1761300632072,-300.0,0.00027425,120]
[392276784,1761300632083,-195.0,0.00027425,120]
[392276785,1761300632095,-606.53151133,0.00027425,120]
[392276786,1761300632111,-667.0,0.00027474,2]
[392276787,1761300632123,-195.0,0.000275,120]
[392276788,1761300632136,-1282.0,0.00027527,2]
[392276789,1761300632147,-636.0,0.0002758,2]
[392276790,1761300632158,-674.0,0.00027633,2]
[392276791,1761300632168,-179.95993737,0.00027644,2]
[392276792,1761300632179,-300.0,0.00027645,7]
[392276793,1761300632190,-3420.12,0.00027645,2]
[392276794,1761300632202,-150.0,0.00027645,2]
[392276795,1761300632213,-666.0,0.00027645,3]
[392276796,1761300632223,-251.89,0.00027898,2]
[392276797,1761300632234,-217.0,0.00028813,2]
[392276798,1761300632244,-251.89,0.00028828,2]
[392276799,1761300632254,-251.89,0.00029758,2]
[392276800,1761300632264,-251.89,0.00030688,2]
[392276801,1761300632275,-151.0,0.00031407,2]
[392276802,1761300632285,-151.0,0.00031407,2]
[392276803,1761300632295,-151.0,0.00031407,2]
[392276804,1761300632304,-151.0,0.00031407,2]
[392276805,1761300632318,-151.0,0.00031407,2]
[392276806,1761300632328,-151.0,0.00031407,2]
[392276807,1761300632338,-151.0,0.00031407,2]
[392276808,1761300632348,-151.0,0.00031407,2]
[392276809,1761300632359,-151.0,0.00031407,2]
[392276810,1761300632369,-151.0,0.00031407,2]
[392276811,1761300632379,-151.0,0.00031407,2]
[392276812,1761300632390,-151.0,0.00031407,2]
[392276813,1761300632400,-151.0,0.00031407,2]
[392276814,1761300632411,-151.0,0.00031407,2]
[392276815,1761300632421,-151.0,0.00031407,2]
[392276816,1761300632431,-151.0,0.00031407,2]
[392276817,1761300632440,-151.0,0.00031407,2]
[392276818,1761300632450,-151.0,0.00031407,2]
[392276819,1761300632463,-151.0,0.00031407,2]
[392276820,1761300632474,-151.0,0.00031407,2]
[392276821,1761300632483,-151.0,0.00031407,2]
[392276822,1761300632493,-247.77310714,0.00031407,2]
[392276823,1761300632503,-151.0,0.00031407,2]
[392276824,1761300632513,-151.0,0.00031407,2]
[392276825,1761300632523,-151.0,0.00031407,2]
[392276826,1761300632534,-151.0,0.00031407,2]
[392276827,1761300632543,-151.0,0.00031407,2]
[392276828,1761300632553,-151.0,0.00031407,2]
[392276829,1761300632563,-151.0,0.00031407,2]
[392276830,1761300632572,-151.0,0.00031407,2]
[392276831,1761300632582,-151.0,0.00031407,2]
[392276832,1761300632592,-151.0,0.00031407,2]
[392276833,1761300632602,-151.0,0.00031407,2]
[392276834,1761300632611,-151.0,0.00031407,2]
[392276835,1761300632621,-251.89,0.00031618,2]
[392276836,1761300632631,-150.0,0.00032,2]
[392276837,1761300632642,-7728.33,0.00032232,2]
[392276838,1761300632657,-251.89,0.00032548,2]
[392276839,1761300632669,-251.89,0.00033478,2]
[392276840,1761300632680,-251.89,0.00034408,2]
[392276841,1761300632690,-158.6,0.00035068,2]
[392276842,1761300632700,-3738.95,0.00035083,2]
[392276843,1761300632710,-412.383,0.00035101,41]
[392276844,1761300632722,-1856.11,0.00035191,2]
[392276845,1761300632732,-578.95987711,0.00035332,2]
[392276846,1761300633482,-949.04012289,0.00035332,2]
[392276847,1761300633492,-521.27,0.00035338,30]
[392276848,1761300633502,-68.35532992,0.00035338,120]
[392276849,1761300633514,-2015.80487419,0.00035338,120]
[392276850,1761300633526,-563.90783571,0.00035338,120]
[392276851,1761300633538,-102.93196018,0.00035338,120]
[392276852,1761300633547,-475.08379357,0.00035338,2]
[392276853,1761300633559,-2430.63083125,0.00035338,2]
[392276854,1761300633571,-1655.08537518,0.00035338,2]
[392276855,1761300633580,-251.89,0.00035338,2]
[392276856,1761300633590,-339.17,0.0003536,2]
[392276857,1761300633600,-1000.0,0.0003536,2]
[392276858,1761300633609,-158.6,0.00035379,2]
[392276859,1761300633619,-1528.0,0.00035512,2]
[392276860,1761300633628,-1000.0,0.00035634,2]
[392276861,1761300633637,-1528.0,0.00035641,2]
[392276862,1761300633647,-158.6,0.0003569,2]
[392276863,1761300633656,-1528.0,0.00035728,2]
[392276864,1761300633666,-446.68012048,0.00035757,15]
[392276865,1761300633675,-1011.93657959,0.00035758,2]
[392276866,1761300633687,-334.33830891,0.00035758,2]
[392276867,1761300633699,-181.7251115,0.00035758,2]
[392276868,1761300633709,-1000.0,0.00035908,2]
[392276869,1761300633719,-424.9748885,0.00035951,2]
[392276870,1761300633769,-576.1783535,0.00035951,2]
[392276875,1761300637443,-527.846758,0.00035951,2]
[392276876,1761300637454,-158.6,0.00036001,2]
[392276877,1761300637463,-29.12891712,0.00036168,2]
[392276878,1761300637477,-1499.87108288,0.00036168,2]
[392276879,1761300637487,-555.02298983,0.00036182,2]
[392276880,1761300637499,-444.97701017,0.00036182,2]
[392276881,1761300637510,-158.6,0.00036312,2]
[392276882,1761300637520,-1528.0,0.0003634,120]
[392276883,1761300637529,-869.49003802,0.00036429,120]
[392276884,1761300637652,-304.26,0.00036429,120]
[392276889,1761300639489,-355.24996198,0.00036429,120]
[392276890,1761300639499,-1529.0,0.00036433,120]
[392276891,1761300639508,-1000.0,0.00036456,2]
[392276892,1761300639519,-1528.0,0.00036498,120]
[392276893,1761300639528,-158.6,0.00036623,2]
[392276894,1761300639537,-1393.08492941,0.00036652,2]
[392276895,1761300639547,-332.82015249,0.00036672,2]
[392276896,1761300639556,-389.65362367,0.00036672,2]
[392276897,1761300639567,-1000.0,0.0003673,2]
[392276898,1761300639577,-166.0,0.00036733,30]
[392276899,1761300639587,-1114.64384275,0.00036733,120]
[392276900,1761300639596,-222.1463148,0.00036733,120]
[392276901,1761300639606,-500.0,0.0003686,5]
[392276902,1761300639616,-163.67233058,0.0003686,5]
[392276903,1761300639625,-557.12884382,0.000369,2]
[392276904,1761300639636,-942.87115618,0.000369,2]
[392276905,1761300639644,-1500.0,0.000369,2]
[392276906,1761300639654,-1500.0,0.000369,2]
[392276907,1761300639663,-202.77127292,0.000369,2]
[392276908,1761300639814,-406.19,0.000369,2]
[392276909,1761300639826,-316.49872708,0.000369,2]
[392276910,1761300639835,-874.10916553,0.00036925,7]
[392276911,1761300639845,-23273.5860994,0.00036925,7]
[392276912,1761300639855,-158.6,0.00036934,2]
[392276913,1761300639864,-1000.0,0.00037004,2]
[392276914,1761300639874,-1563.57,0.00037013,2]
[392276915,1761300639885,-1528.0,0.0003705,7]
[392276916,1761300639894,-1528.0,0.00037197,2]
[392276917,1761300639904,-150.0,0.00037208,7]
[392276918,1761300639914,-150.0,0.00037208,7]
[392276919,1761300639924,-158.6,0.00037245,2]
[392276920,1761300639934,-2737.52471129,0.00037274,2]
[392276921,1761300640001,-962.8563367,0.00037274,2]
[392276922,1761300640012,-1000.0,0.00037278,2]
[392276923,1761300640022,-6420.5953,0.00037285,2]
[392276924,1761300640032,-233.7175,0.00037285,2]
[392276925,1761300640042,-279.0283,0.00037285,2]
[392276926,1761300640052,-4059.8188,0.00037285,2]
[392276927,1761300640062,-2131.7729,0.00037285,2]
[392276928,1761300640072,-1529.0,0.00037374,2]
[392276929,1761300640082,-1528.0,0.00037385,120]
[392276930,1761300640092,-466.24016522,0.00037408,5]
[392276931,1761300640102,-1000.0,0.00037552,2]
[392276932,1761300640111,-158.6,0.00037556,2]
[392276933,1761300640121,-1528.0,0.00037624,2]
[392276934,1761300640130,-1529.0,0.00037635,7]
[392276935,1761300640140,-1528.0,0.00037734,7]
[392276936,1761300640151,-1000.0,0.00037826,2]
[392276937,1761300640162,-3700.38104797,0.0003784,2]
[392276938,1761300640172,-158.6,0.00037867,2]
[392276939,1761300640182,-300.0,0.00038,120]
[392276940,1761300640191,-7023.93684946,0.00038,10]
[392276941,1761300640201,-1096.0,0.00038015,5]
[392276942,1761300640211,-1528.0,0.00038015,7]
[392276943,1761300640221,-1000.0,0.000381,2]
[392276944,1761300640231,-158.6,0.00038178,2]
[392276945,1761300640241,-1269.0,0.00038204,2]
[392276946,1761300640252,-818.0,0.00038204,2]
[392276947,1761300640262,-1000.0,0.00038374,2]
[392276948,1761300640272,-259.08,0.00038401,14]
[392276949,1761300640283,-3700.38104797,0.00038405,2]
[392276950,1761300640295,-172.69970504,0.00038416,14]
[392276951,1761300640307,-158.6,0.00038489,2]
[392276952,1761300640325,-1000.0,0.000385,2]
[392276953,1761300640343,-2500.0,0.000385,2]
[392276954,1761300640352,-500.0,0.00038599,2]
[392276955,1761300640361,-1500.0,0.000386,2]
[392276956,1761300640371,-117097.33637427,0.000386,2]
[392276957,1761300640380,-1000.0,0.00038648,2]
[392276958,1761300640391,-1528.0,0.00038731,7]
[392276959,1761300640402,-1528.0,0.00038749,2]
[392276960,1761300640413,-158.6,0.000388,2]
[392276961,1761300640423,-6539.0,0.00038804,2]
[392276962,1761300640433,-3487.0,0.00038804,2]
[392276963,1761300640443,-6456.0,0.00038804,2]
[392276964,1761300640453,-1529.0,0.00038815,2]
[392276965,1761300640463,-1150.35129009,0.00038822,2]
[392276966,1761300640473,-1529.0,0.00038871,7]
[392276967,1761300640482,-1000.0,0.00038922,2]
[392276968,1761300640492,-547.13308798,0.00039066,20]
[392276969,1761300640502,-158.6,0.00039111,2]
[392276970,1761300640513,-1000.0,0.00039196,2]
[392276971,1761300640522,-696.48,0.00039321,2]
[392276972,1761300640533,-475.59,0.00039321,2]
[392276973,1761300640543,-696.48,0.00039321,2]
[392276974,1761300640552,-951.18,0.00039323,2]
[392276975,1761300640562,-696.48,0.00039325,2]
[392276976,1761300640571,-696.48,0.00039325,2]
[392276977,1761300640580,-696.48,0.00039325,2]
[392276978,1761300640590,-696.48,0.00039325,2]
[392276979,1761300640599,-608.82,0.00039325,2]
[392276980,1761300640609,-158.6,0.00039422,2]
[392276981,1761300640618,-1000.0,0.0003947,2]
[392276982,1761300640628,-525.76585025,0.00039585,30]
[392276983,1761300640638,-1150.35129003,0.00039679,2]
[392276984,1761300640647,-158.6,0.00039732,2]
[392276985,1761300640656,-789.6159818,0.00039744,2]
[392276986,1761300640666,-150.0,0.00039785,14]
[392276987,1761300640675,-430.74709499,0.00039825,30]
[392276988,1761300640685,-414.24,0.00039863,2]
[392276989,1761300640694,-414.24,0.00039863,2]
[392276990,1761300640704,-414.24,0.00039863,2]
[392276991,1761300640713,-828.48,0.00039863,2]
[392276992,1761300640723,-414.24,0.00039863,2]
[392276993,1761300640733,-414.24,0.00039863,2]
[392276994,1761300640741,-150.0,0.00039978,2]
[392276995,1761300640750,-500.0,0.00039978,30]
[392276996,1761300640759,-150.0,0.00039978,2]
[392276997,1761300640769,-150.0,0.00039978,30]
[392276998,1761300640778,-150.0,0.00039978,30]
[392276999,1761300640787,-18872.7464966,0.0003999,3]
[392277000,1761300640795,-15000.0,0.0004,120]
[392277001,1761300640804,-10000.0,0.0004,120]
[392277002,1761300640813,-300.51,0.00040008,2]
[392277003,1761300640821,-150.0,0.00040008,2]
[392277004,1761300640830,-1211.86,0.00040008,2]
[392277005,1761300640839,-150.0,0.00040008,2]
[392277006,1761300640848,-150.0,0.00040008,2]
[392277007,1761300640856,-150.0,0.00040008,2]
[392277008,1761300640865,-150.0,0.00040008,2]
[392277009,1761300640874,-150.0,0.00040033,2]
[392277010,1761300640883,-500.0,0.00040033,30]
[392277011,1761300640891,-150.0,0.00040033,2]
[392277012,1761300640900,-500.0,0.0004006,30]
[392277013,1761300640909,-200.0,0.00040088,2]
[392277014,1761300640918,-336.0,0.00040088,30]
[392277015,1761300640927,-200.0,0.00040088,2]
[392277016,1761300640935,-150.0,0.0004011,2]
[392277017,1761300640944,-150.562,0.00040186,2]
[392277018,1761300640953,-258.38,0.00040186,2]
[392277019,1761300640961,-150.829,0.00040186,2]
[392277020,1761300640970,-632.65170982,0.00040187,30]
[392277021,1761300640978,-647.72,0.000402,120]
[392277022,1761300640987,-632.7940325,0.00040299,12]
[392277023,1761300640996,-521.27,0.00040319,120]
[392277024,1761300641005,-696.48,0.00040329,2]
[392277025,1761300641015,-696.48,0.00040329,2]
[392277026,1761300641024,-1392.75,0.00040329,2]
[392277027,1761300641033,-1392.75,0.00040329,2]
[392277028,1761300641042,-696.27,0.00040329,2]
[392277029,1761300641051,-1392.75,0.00040329,2]
[392277030,1761300641060,-475.46,0.00040329,2]
[392277031,1761300641069,-475.59,0.00040329,2]
[392277032,1761300641079,-475.59,0.00040329,2]
[392277033,1761300641088,-708.63,0.00040329,2]
[392277034,1761300641097,-18872.7464966,0.00040392,3]
[392277035,1761300641106,-578.86657509,0.00040399,30]
[392277036,1761300641116,-150.0,0.00040402,2]
[392277037,1761300641126,-150.0,0.00040402,2]
[392277038,1761300641135,-254.981,0.00040402,2]
[392277039,1761300641143,-150.0,0.00040402,2]
[392277040,1761300641152,-150.0,0.00040402,2]
[392277041,1761300641160,-150.377,0.00040402,2]
[392277042,1761300641170,-2053.0,0.00040402,2]
[392277043,1761300641179,-3413.0,0.00040402,2]
[392277044,1761300641188,-572.0,0.00040402,2]
[392277045,1761300641197,-819.0,0.00040402,2]
[392277046,1761300641207,-1591.0,0.00040402,2]
[392277047,1761300641218,-606.0,0.00040402,2]
[392277048,1761300641228,-1312.0,0.00040402,2]
[392277049,1761300641237,-838.72,0.00040411,2]
[392277050,1761300641247,-561.89,0.00040411,2]
[392277051,1761300641258,-300.0,0.000405,7]
[392277052,1761300641269,-344.75363738,0.000405,7]
[392277053,1761300641279,-1150.35129003,0.00040536,28]
[392277054,1761300641290,-189.52918601,0.00040568,15]
[392277055,1761300641299,-200.0,0.000406,14]
[392277056,1761300641310,-10000.0,0.00040667,120]
[392277057,1761300641329,-4630.95431,0.0004068,5]
[392277058,1761300641339,-18872.7464966,0.0004068,3]
[392277059,1761300641348,-176.3,0.00040685,2]
[392277060,1761300641359,-176.3,0.00040685,2]
[392277061,1761300641367,-336.94,0.00040685,2]
[392277062,1761300641377,-168.47,0.00040685,2]
[392277063,1761300641389,-14661.88407977,0.0004069,2]
[392277064,1761300641399,-1022.0,0.000407,60]
[392277065,1761300641408,-500.0,0.000407,14]
[392277066,1761300641417,-1000.0,0.000407,7]
[392277067,1761300641427,-200.0,0.00040766,20]
[392277068,1761300641436,-151.0,0.0004078,14]
[392277069,1761300641445,-3885.0,0.00040783,120]
[392277070,1761300641455,-700.0,0.000408,14]
[392277071,1761300641464,-414.35,0.00040828,2]
[392277072,1761300641475,-414.35,0.00040828,2]
[392277073,1761300641486,-414.35,0.00040828,2]
[392277074,1761300641495,-168.52,0.00040828,2]
[392277075,1761300641505,-414.35,0.00040828,2]
[392277076,1761300641516,-168.52,0.00040828,2]
[392277077,1761300641526,-414.35,0.00040828,2]
[392277078,1761300641535,-176.35,0.00040828,2]
[392277079,1761300641544,-168.52,0.00040828,2]
[392277080,1761300641553,-630.72,0.00040828,2]
[392277081,1761300641562,-176.35,0.00040828,2]
[392277082,1761300641572,-168.52,0.00040828,2]
[392277083,1761300641582,-176.35,0.00040828,2]
[392277084,1761300641591,-547.6,0.00040828,2]
[392277085,1761300641603,-168.52,0.00040828,2]
[392277086,1761300641615,-168.52,0.00040828,2]
[392277087,1761300641627,-547.6,0.00040828,2]
[392277088,1761300641637,-176.35,0.00040828,2]
[392277089,1761300641648,-547.6,0.00040828,2]
[392277090,1761300641657,-176.35,0.00040828,2]
[392277091,1761300641666,-168.52,0.00040828,2]
[392277092,1761300641676,-547.6,0.00040828,2]
[392277093,1761300641685,-168.52,0.00040828,2]
[392277094,1761300641694,-176.35,0.00040828,2]
[392277095,1761300641704,-547.6,0.00040828,2]
[392277096,1761300641713,-176.35,0.00040828,2]
[392277097,1761300641723,-168.52,0.00040828,2]
[392277098,1761300641733,-176.35,0.00040828,2]
[392277099,1761300641743,-1094.22,0.00040828,2]
[392277100,1761300641752,-150.0,0.0004083,2]
[392277101,1761300641762,-150.0,0.0004083,2]
[392277102,1761300641771,-150.0,0.0004083,2]
[392277103,1761300641780,-151.85,0.0004083,2]
[392277104,1761300641789,-703.0,0.0004088,120]
[392277105,1761300641798,-4630.95432,0.0004088,6]
[392277106,1761300641807,-18872.7464966,0.00040897,3]
[392277107,1761300641816,-1000.0,0.000409,7]
[392277108,1761300641825,-1000.0,0.000409,14]
[392277109,1761300641835,-1425.0,0.00040907,2]
[392277110,1761300641845,-500.0,0.00040975,2]
[392277111,1761300641854,-113236.47898,0.00040975,3]
[392277112,1761300641864,-47766.8166408,0.00040975,3]
[392277113,1761300641873,-1425.0,0.00040977,2]
[392277114,1761300641883,-500.0,0.00040984,2]
[392277115,1761300641893,-33170.7581,0.00040985,2]
[392277116,1761300641902,-522.491,0.00040985,2]
[392277117,1761300641912,-192905.9012,0.00040985,2]
[392277118,1761300641921,-1000.0,0.00040985,120]
[392277119,1761300641931,-1000.0,0.00040985,2]
[392277120,1761300641940,-9961.3857,0.00040986,2]
[392277121,1761300641950,-610.66399396,0.00040995,120]
[392277122,1761300641959,-5000.0,0.00040995,2]
[392277123,1761300641969,-159.0,0.00041,90]
[392277124,1761300641979,-1011.0,0.00041,7]
[392277125,1761300641988,-189.52918595,0.00041049,15]
[392277126,1761300641997,-11941.7041602,0.00041063,3]
[392277127,1761300642006,-18872.7464966,0.00041065,3]
[392277128,1761300642015,-11941.7041602,0.00041065,3]
[392277129,1761300642024,-18872.7464966,0.00041066,3]
[392277130,1761300642033,-11941.7041602,0.00041066,3]
[392277131,1761300642043,-320.5756937,0.00041073,5]
[392277132,1761300642052,-501.90074818,0.00041073,5]
[392277133,1761300642062,-160.26537923,0.00041073,5]
[392277134,1761300642071,-160.2103039,0.00041073,5]
[392277135,1761300642081,-500.0,0.00041073,5]
[392277136,1761300642090,-160.21026238,0.00041073,2]
[392277137,1761300642099,-500.0,0.00041073,5]
[392277138,1761300642108,-157.67669232,0.00041073,5]
[392277139,1761300642118,-360.43011227,0.00041073,5]
[392277140,1761300642127,-500.0,0.00041073,5]
[392277141,1761300642137,-639.59607453,0.00041073,5]
[392277142,1761300642147,-500.0,0.00041075,2]
[392277143,1761300642157,-11941.7041602,0.00041075,3]
[392277144,1761300642168,-161.53545057,0.00041075,7]
[392277145,1761300642178,-510.104272,0.00041083,120]
[392277146,1761300642187,-2074.640102,0.00041083,120]
[392277147,1761300642196,-507.974731,0.00041083,120]
[392277148,1761300642205,-500.0,0.00041083,120]
[392277149,1761300642215,-18872.7464966,0.00041084,3]
[392277150,1761300642224,-11941.7041602,0.00041084,3]
[392277151,1761300642233,-205.920584,0.00041085,120]
[392277152,1761300642245,-205.920584,0.00041085,120]
[392277153,1761300642255,-205.920584,0.00041085,120]
[392277154,1761300642266,-151.0,0.00041085,120]
[392277156,1761300642277,-205.920584,0.00041085,120]
[392277157,1761300642287,-151.0,0.00041085,120]
[392277158,1761300642297,-151.0,0.00041085,120]
[392277159,1761300642307,-151.0,0.00041085,120]
[392277160,1761300642319,-151.0,0.00041085,120]
[392277161,1761300642328,-151.0,0.00041085,120]
[392277163,1761300642337,-151.0,0.00041085,120]
[392277164,1761300642345,-151.0,0.00041085,120]
[392277165,1761300642355,-151.0,0.00041085,120]
[392277166,1761300642364,-151.0,0.00041085,120]
[392277167,1761300642373,-151.0,0.00041085,120]
[392277168,1761300642382,-169854.718469,0.00041085,3]
[392277169,1761300642392,-262717.491525,0.00041085,3]
[392277170,1761300642401,-151.0,0.00041094,120]
[392277171,1761300642410,-151.0,0.00041094,120]
[392277172,1761300642419,-151.0,0.00041094,10]
[392277173,1761300642428,-155.86495,0.00041094,120]
[392277174,1761300642437,-151.0,0.00041094,120]
[392277175,1761300642446,-151.0,0.00041094,60]
[392277176,1761300642456,-151.0,0.00041094,120]
[392277177,1761300642465,-151.0,0.00041094,120]
[392277178,1761300642475,-151.0,0.00041094,120]
[392277179,1761300642484,-151.0,0.00041094,120]
[392277180,1761300642493,-151.0,0.00041094,120]
[392277181,1761300642503,-151.0,0.00041094,120]
[392277182,1761300642512,-151.0,0.00041094,30]
[392277183,1761300642521,-500.0,0.00041094,30]
[392277184,1761300642531,-151.0,0.00041094,30]
[392277185,1761300642539,-250.0,0.00041094,30]
[392277186,1761300642549,-151.0,0.00041094,30]
[392277187,1761300642558,-500.0,0.00041094,30]
[392277188,1761300642567,-250.0,0.00041094,30]
[392277189,1761300642576,-151.0,0.00041094,30]
[392277190,1761300642585,-500.0,0.00041094,30]
[392277191,1761300642595,-250.0,0.00041094,30]
[392277192,1761300642604,-151.0,0.00041094,30]
[392277193,1761300642613,-500.0,0.00041094,30]
[392277194,1761300642623,-250.0,0.00041094,30]
[392277195,1761300642633,-154.16430345,0.00041094,30]
[392277196,1761300642643,-500.0,0.00041094,30]
[392277197,1761300642652,-250.0,0.00041094,30]
[392277198,1761300642661,-500.0,0.00041094,30]
[392277199,1761300642670,-250.0,0.00041094,30]
[392277200,1761300642680,-250.0,0.00041094,30]
[392277201,1761300642689,-250.0,0.00041094,30]
[392277202,1761300642699,-500.0,0.00041094,30]
[392277203,1761300642708,-250.0,0.00041094,30]
[392277204,1761300642717,-151.0,0.00041094,30]
[392277205,1761300642727,-250.0,0.00041094,30]
[392277206,1761300642736,-256.32677684,0.00041094,30]
[392277207,1761300642745,-250.0,0.00041094,30]
[392277208,1761300642755,-250.0,0.00041094,30]
[392277209,1761300642764,-250.0,0.00041094,30]
[392277210,1761300642773,-250.0,0.00041094,30]
[392277211,1761300642782,-250.0,0.00041094,30]
[392277212,1761300642792,-500.0,0.00041094,30]
[392277213,1761300642801,-250.0,0.00041094,30]
[392277214,1761300642810,-250.0,0.00041094,30]
[392277215,1761300642819,-500.0,0.00041094,30]
[392277216,1761300642828,-500.0,0.00041094,30]
[392277217,1761300642838,-500.0,0.00041094,30]
[392277218,1761300642847,-250.0,0.00041094,30]
[392277219,1761300642856,-500.0,0.00041094,30]
[392277220,1761300642865,-250.0,0.00041094,30]
[392277221,1761300642875,-500.0,0.00041094,30]
[392277222,1761300642884,-500.0,0.00041094,30]
[392277223,1761300642894,-250.0,0.00041094,30]
[392277224,1761300642904,-250.0,0.00041094,30]
[392277225,1761300642913,-250.0,0.00041094,30]
[392277226,1761300642922,-500.0,0.00041094,30]
[392277227,1761300642931,-250.0,0.00041094,30]
[392277228,1761300642942,-500.0,0.00041094,30]
[392277229,1761300642951,-250.0,0.00041094,30]
[392277230,1761300642960,-250.0,0.00041094,30]
[392277231,1761300642969,-250.0,0.00041094,30]
[392277232,1761300642979,-250.0,0.00041094,30]
[392277233,1761300642988,-500.0,0.00041094,30]
[392277234,1761300642997,-500.0,0.00041094,30]
[392277235,1761300643006,-250.0,0.00041094,30]
[392277236,1761300643015,-250.0,0.00041094,30]
[392277237,1761300643024,-250.0,0.00041094,30]
[392277238,1761300643034,-250.0,0.00041094,30]
[392277239,1761300643043,-500.0,0.00041094,30]
[392277240,1761300643052,-500.0,0.00041094,30]
[392277241,1761300643062,-301.38365886,0.00041094,30]
[392277242,1761300643071,-500.0,0.00041094,30]
[392277243,1761300643080,-500.0,0.00041094,30]
[392277244,1761300643089,-500.0,0.00041094,30]
[392277245,1761300643098,-500.0,0.00041094,30]
[392277246,1761300643108,-500.0,0.00041094,30]
[392277247,1761300643117,-500.0,0.00041094,30]
[392277248,1761300643127,-500.0,0.00041094,30]
[392277249,1761300643136,-500.0,0.00041094,30]
[392277250,1761300643145,-500.0,0.00041094,30]
[392277251,1761300643155,-500.0,0.00041094,30]
[392277252,1761300643164,-500.0,0.00041094,30]
[392277253,1761300643174,-159.94697005,0.00041094,30]
[392277254,1761300643183,-500.0,0.00041094,2]
[392277255,1761300643193,-500.0,0.00041094,2]
[392277256,1761300643203,-500.0,0.00041094,2]
[392277257,1761300643212,-500.0,0.00041095,30]
[392277258,1761300643372,-500.0,0.00041095,30]
[392277259,1761300643385,-500.0,0.00041095,30]
[392277260,1761300643397,-500.0,0.00041095,30]
[392277261,1761300643407,-606.23827321,0.00041095,30]
[392277262,1761300643416,-500.0,0.00041095,30]
[392277263,1761300643426,-644.65494901,0.00041095,30]
[392277264,1761300643435,-500.0,0.00041095,30]
[392277265,1761300643444,-503.85559779,0.00041095,30]
[392277266,1761300643454,-22825.3043766,0.00041095,2]
[392277267,1761300643463,-500.0,0.00041095,30]
[392277268,1761300643473,-500.0,0.00041095,30]
[392277269,1761300643482,-180.14874032,0.00041095,30]
[392277270,1761300643491,-504.3008975,0.00041095,30]
[392277271,1761300643501,-500.0,0.00041095,30]
[392277272,1761300643510,-500.0,0.00041095,30]
[392277273,1761300643519,-504.39781936,0.00041095,30]
[392277274,1761300643529,-500.0,0.00041095,30]
[392277275,1761300643538,-500.0,0.00041095,30]
[392277276,1761300643548,-500.0,0.00041095,30]
[392277277,1761300643557,-377.43766849,0.00041095,30]
[392277278,1761300643566,-500.0,0.00041095,30]
[392277279,1761300643576,-500.0,0.00041095,30]
[392277280,1761300643586,-500.0,0.00041095,30]